[Event "MPL 35th National U-20 Girls Chess-ch 20"]
[Site "Haryana"]
[Date "2022.03.12"]
[Round "8.4"]
[White "Divyabharathi Masanam"]
[Black "Rindhiya V"]
[Result "1/2-1/2"]
[ECO "C54"]
[WhiteElo "1711"]
[BlackElo "1949"]
[Annotator "ChessBase"]
[PlyCount "60"]
[EventDate "2022.03.09"]
[EventCountry "IND"]
[SourceTitle "playchess.com"]
[Source "ChessBase"]
[SourceQuality "1"]
[TimeControl "5400+30"]

1. e4 {[%emt 0:00:30]} e5 {[%emt 0:00:03]} 2. Nf3 {[%emt 0:00:09]} Nc6 {[%emt 0:00:01]} 3. Bc4 {[%emt 0:00:15]} Bc5 {[%emt 0:00:04]} 4. c3 {[%emt 0:00:10]} Nf6 {[%emt 0:00:06]} 5. d3 {[%emt 0:01:11]} d6 {[%emt 0:00:06]} 6. O-O {[%emt 0:00:12]} h6 {[%emt 0:00:37]} 7. h3 {[%emt 0:01:33]} O-O {[%emt 0:00:43]} 8. Bb3 {[%emt 0:01:41]} a6 {[%emt 0:02:42]} 9. Nbd2 {[%emt 0:01:20]} Ba7 {[%emt 0:12:45]} 10. Re1 {[%emt 0:04:22]} Be6 {[%emt 0:04:11]} 11. Nf1 {[%emt 0:03:43]} Ne7 {[%emt 0:02:06]} 12. Be3 {[%emt 0:03:40]} Ng6 {[%emt 0:02:20]} 13. Ng3 {[%emt 0:02:23]} Re8 {[%emt 0:08:23]} 14. Bxa7 {[%emt 0:11:24]} Rxa7 {[%emt 0:00:01]} 15. d4 {[%emt 0:00:24]} Ra8 {[%emt 0:11:47]} 16. Qc2 {[%emt 0:11:09]} c6 {[%emt 0:06:25]} 17. Rad1 {[%emt 0:02:12]} Qc7 {[%emt 0:01:27]} 18. Rd2 {[%emt 0:04:38]} c5 {[%emt 0:15:02]} 19. Bxe6 {[%emt 0:00:34]} Rxe6 {[%emt 0:02:38]} 20. dxe5 {[%emt 0:02:26]} dxe5 {[%emt 0:00:35]} 21. Red1 {[%emt 0:01:20]} c4 {[%emt 0:05:40]} 22. Kh2 {[%emt 0:08:40]} Nf4 {[%emt 0:02:08]} 23. Ne1 {[%emt 0:01:32]} b5 {[%emt 0:01:55]} 24. Nf5 {[%emt 0:01:02]} Ng6 {[%emt 0:00:30]} 25. g3 {[%emt 0:01:33]} Ne7 {[%emt 0:05:21]} 26. Nxe7+ {[%emt 0:01:48]} Qxe7 {[%emt 0:01:00]} 27. Ng2 {[%emt 0:00:17]} Qb7 28. Re2 {[%emt 0:03:46]} Qc6 {[%emt 0:03:57]} 29. f3 {[%emt 0:03:07]} Ra7 {[%emt 0:06:36]} 30. Ne3 {[%emt 0:00:49]} Rd7 {[%emt 0:00:38]} 1/2-1/2

[Event "MPL 35th National U-20 Girls Chess-ch 20"]
[Site "Haryana"]
[Date "2022.03.12"]
[Round "8.5"]
[White "Bommini Mounika Akshaya"]
[Black "Anupam M Sreekumar"]
[Result "1/2-1/2"]
[ECO "D00"]
[WhiteElo "2145"]
[BlackElo "1724"]
[Annotator "ChessBase"]
[PlyCount "59"]
[EventDate "2022.03.09"]
[EventCountry "IND"]
[SourceTitle "playchess.com"]
[Source "ChessBase"]
[SourceQuality "1"]
[TimeControl "5400+30"]

1. d4 {[%emt 0:05:39]} d5 {[%emt 0:00:17]} 2. Bf4 {[%emt 0:00:08]} Nf6 {[%emt 0:00:24]} 3. e3 e6 {[%emt 0:00:22]} 4. Nd2 {[%emt 0:00:15]} Be7 {[%emt 0:00:46]} 5. Ngf3 {[%emt 0:00:31]} O-O {[%emt 0:01:46]} 6. Bd3 {[%emt 0:00:20]} b6 {[%emt 0:00:57]} 7. Qe2 {[%emt 0:00:37]} Bb7 {[%emt 0:00:37]} 8. Ne5 {[%emt 0:01:04]} c5 {[%emt 0:00:53]} 9. c3 {[%emt 0:00:07]} Nc6 {[%emt 0:04:19]} 10. Rd1 {[%emt 0:02:48]} a5 {[%emt 0:08:29]} 11. a4 {[%emt 0:04:57]} Nd7 {[%emt 0:04:47]} 12. Bg3 {[%emt 0:06:41]} cxd4 {[%emt 0:03:11]} 13. Nxd7 {[%emt 0:09:35]} Qxd7 {[%emt 0:02:36]} 14. exd4 {[%emt 0:00:07]} Nb8 {[%emt 0:08:41]} 15. Ra1 {[%emt 0:11:28]} Bd6 {[%emt 0:09:07]} 16. f4 {[%emt 0:01:56]} Ba6 {[%emt 0:01:45]} 17. O-O {[%emt 0:02:22]} Bxd3 {[%emt 0:16:32]} 18. Qxd3 {[%emt 0:00:09]} Nc6 {[%emt 0:00:13]} 19. Nf3 {[%emt 0:02:47]} Ne7 {[%emt 0:03:24]} 20. Ne5 {[%emt 0:01:27]} Bxe5 {[%emt 0:01:28]} 21. fxe5 {[%emt 0:04:49]} Rab8 {[%emt 0:02:52]} 22. Rf2 {[%emt 0:09:34]} Rfc8 {[%emt 0:05:57]} 23. Bf4 {[%emt 0:02:05]} Rc4 {[%emt 0:05:17]} 24. b3 Rcc8 {[%emt 0:00:08]} 25. Raf1 {[%emt 0:04:14]} Rf8 {[%emt 0:01:44]} 26. Bg5 {[%emt 0:04:18]} h6 {[%emt 0:02:15]} 27. Bc1 {[%emt 0:03:09]} b5 {[%emt 0:07:30]} 28. axb5 {[%emt 0:02:09]} Rxb5 {[%emt 0:02:37]} 29. c4 {[%emt 0:05:44]} dxc4 {[%emt 0:01:16]} 30. Qxc4 {[%emt 0:02:10]} 1/2-1/2

[Event "MPL 35th National U-20 Girls Chess-ch 20"]
[Site "Haryana"]
[Date "2022.03.12"]
[Round "8.6"]
[White "Chinnam Vyshnavi"]
[Black "Velpula Sarayu"]
[Result "1/2-1/2"]
[ECO "A05"]
[WhiteElo "1721"]
[BlackElo "1875"]
[Annotator "NA"]
[PlyCount "56"]
[EventDate "2022.03.09"]
[EventCountry "IND"]
[SourceTitle "playchess.com"]
[Source "ChessBase"]
[SourceQuality "1"]
[TimeControl "5400+30"]

1. Nf3 {[%emt 0:02:04]} Nf6 {[%emt 0:00:14]} 2. c4 {[%emt 0:00:28]} g6 {[%emt 0:00:29]} 3. b4 {[%emt 0:00:12]} Bg7 {[%emt 0:00:30]} 4. Bb2 {[%emt 0:00:08]} O-O {[%emt 0:00:23]} 5. g3 {[%emt 0:00:04]} c5 {[%emt 0:05:15]} 6. bxc5 {[%emt 0:04:26]} Na6 {[%emt 0:05:07]} 7. d4 {[%emt 0:03:38]} Ne4 {[%emt 0:03:33]} 8. Qc2 {[%emt 0:15:05]} d5 {[%emt 0:00:53]} 9. cxd6 {[%emt 0:01:34]} Nxd6 {[%emt 0:00:06]} 10. e4 {[%emt 0:02:02]} Bg4 {[%emt 0:12:41]} 11. Nbd2 {[%emt 0:02:22]} Nb4 {[%emt 0:14:08]} 12. Qb3 {[%emt 0:03:21]} Nc6 {[%emt 0:00:32]} 13. e5 {[%emt 0:03:26]} Nf5 {[%emt 0:02:25]} 14. d5 {[%emt 0:01:04]} Na5 {[%emt 0:01:59]} 15. Qd3 {[%emt 0:04:33]} Rc8 {[%emt 0:03:54]} 16. h3 {[%emt 0:02:04]} Bxf3 {[%emt 0:02:01]} 17. Qxf3 {[%emt 0:00:17]} Bh6 {[%emt 0:02:11]} 18. Nb3 {[%emt 0:13:00]} Nxc4 {[%emt 0:06:44]} 19. Bxc4 {[%emt 0:00:07]} Rxc4 {[%emt 0:00:05]} 20. O-O {[%emt 0:00:31]} Qd7 {[%emt 0:07:32]} 21. Bc1 {[%emt 0:08:05]} Bxc1 {[%emt 0:06:05]} 22. Raxc1 {[%emt 0:00:45]} Nd4 {[%emt 0:01:22]} 23. Qe4 {[%emt 0:05:49]} Nxb3 {[%emt 0:05:12]} 24. Qxc4 Nd2 {[%emt 0:03:51]} 25. Qd3 {[%emt 0:03:41]} Nxf1 {[%emt 0:00:11]} 26. Rxf1 {[%emt 0:00:04]} Rd8 {[%emt 0:02:15]} 27. Rd1 {[%emt 0:00:30]} Qxh3 {[%emt 0:00:24]} 28. d6 {[%emt 0:02:58]} Qd7 {[%emt 0:03:40]} 1/2-1/2

[Event "MPL 35th National U-20 Girls Chess-ch 20"]
[Site "Haryana"]
[Date "2022.03.13"]
[Round "9.3"]
[White "Bristy Mukherjee"]
[Black "Femil Chelladurai"]
[Result "0-1"]
[ECO "D01"]
[WhiteElo "1856"]
[BlackElo "1580"]
[Annotator "NA RC"]
[PlyCount "68"]
[EventDate "2022.03.09"]
[EventCountry "IND"]
[SourceTitle "playchess.com"]
[Source "ChessBase"]
[SourceQuality "1"]
[TimeControl "5400+30"]

1. d4 d5 2. Nc3 Nf6 3. Bg5 Bf5 4. f3 Nbd7 5. Nxd5 Nxd5 6. e4 h6 7. Bc1 e5 8. exf5 Qh4+ 9. g3 Qxd4 10. Qxd4 exd4 11. Ne2 c5 12. Nf4 Nb4 13. Kd1 O-O-O 14. Bd2 Nc6 15. b3 Nde5 16. Be2 Bd6 17. Nh5 g6 18. fxg6 fxg6 19. Nf4 Rdf8 20. Rf1 Rf7 21. Nd3 Nxd3 22. Bxd3 g5 23. Ke2 Rhf8 24. Be4 Ne5 25. h3 Re8 26. Kf2 Ref8 27. Kg2 c4 28. f4 c3 {[#]} 29. Bxc3 $1 dxc3 30. fxe5 Rxf1 31. Rxf1 Rxf1 32. Kxf1 Bxe5 33. Kf2 Kc7 34. g4 b6 $11 0-1

[Event "MPL 35th National U-20 Girls Chess-ch 20"]
[Site "Haryana"]
[Date "2022.03.13"]
[Round "9.4"]
[White "Marium Fatima"]
[Black "Divyabharathi Masanam"]
[Result "1/2-1/2"]
[ECO "D02"]
[WhiteElo "1511"]
[BlackElo "1711"]
[Annotator "NA RC"]
[PlyCount "82"]
[EventDate "2022.03.09"]
[EventCountry "IND"]
[SourceTitle "playchess.com"]
[Source "ChessBase"]
[SourceQuality "1"]
[TimeControl "5400+30"]

1. d4 {[%emt 0:00:02]} d5 {[%emt 0:00:41]} 2. Nf3 {[%emt 0:00:04]} Nf6 {[%emt 0:00:25]} 3. g3 {[%emt 0:00:04]} e6 {[%emt 0:00:59]} 4. Bg2 {[%emt 0:00:04]} Be7 {[%emt 0:01:05]} 5. O-O {[%emt 0:00:08]} O-O {[%emt 0:00:41]} 6. c4 {[%emt 0:00:04]} dxc4 {[%emt 0:01:33]} 7. Qc2 {[%emt 0:00:27]} a6 {[%emt 0:00:45]} 8. a4 {[%emt 0:00:24]} Bd7 {[%emt 0:08:56]} 9. Qxc4 {[%emt 0:01:39]} Bc6 {[%emt 0:01:23]} 10. Nc3 {[%emt 0:02:43]} b5 {[%emt 0:04:46]} 11. Qd3 {[%emt 0:05:02]} b4 {[%emt 0:01:08]} 12. Nd1 {[%emt 0:03:27]} Nbd7 {[%emt 0:04:45]} 13. Ne3 {[%emt 0:05:16]} Be4 {[%emt 0:04:00]} 14. Qd1 {[%emt 0:01:35]} a5 {[%emt 0:05:56]} 15. Nc4 {[%emt 0:03:58]} Bd5 {[%emt 0:09:55]} 16. Ne3 {[%emt 0:01:31]} Bb7 {[%emt 0:01:28]} 17. b3 {[%emt 0:01:30]} Nd5 {[%emt 0:02:09]} 18. Nxd5 {[%emt 0:06:20]} Bxd5 {[%emt 0:00:06]} 19. Bb2 {[%emt 0:01:07]} Rc8 {[%emt 0:01:52]} 20. Ne5 {[%emt 0:10:24]} Bxg2 {[%emt 0:02:47]} 21. Kxg2 {[%emt 0:00:06]} Nxe5 {[%emt 0:00:08]} 22. dxe5 {[%emt 0:00:05]} c5 {[%emt 0:00:40]} 23. Rc1 {[%emt 0:02:09]} h6 {[%emt 0:02:17]} 24. Rc4 {[%emt 0:00:59]} Qc7 {[%emt 0:04:03]} 25. Qc2 {[%emt 0:07:12]} Rfd8 {[%emt 0:01:25]} 26. Rd1 {[%emt 0:01:27]} Qc6+ {[%emt 0:04:22]} 27. e4 {[%emt 0:05:49]} Rxd1 {[%emt 0:08:02]} 28. Qxd1 {[%emt 0:00:02]} Kf8 {[%emt 0:02:41]} 29. Kf1 {[%emt 0:01:53]} Ke8 {[%emt 0:01:33]} 30. Ke2 {[%emt 0:00:34]} Qd7 {[%emt 0:01:59]} 31. Qxd7+ {[%emt 0:01:13]} Kxd7 {[%emt 0:00:10]} 32. Bc1 {[%emt 0:04:30]} h5 {[%emt 0:00:17]} 33. h4 {[%emt 0:00:27]} Kc6 {[%emt 0:01:47]} 34. Be3 {[%emt 0:00:09]} Rd8 {[%emt 0:00:34]} 35. Rc2 {[%emt 0:00:43]} Rg8 {[%emt 0:02:11]} 36. Rc1 {[%emt 0:01:24]} Rd8 {[%emt 0:00:31]} 37. Rc2 {[%emt 0:00:07]} Rd7 {[%emt 0:01:08]} 38. Rc4 {[%emt 0:02:13]} Rd8 {[%emt 0:08:28]} 39. Rc2 {[%emt 0:00:05]} Rd7 {[%emt 0:00:51]} 40. Rc4 {[%emt 0:00:30]} Rd8 {[%emt 0:00:40]} 41. Rc2 {[%emt 0:00:10]} Rd7 {[%emt 0:00:44]} 1/2-1/2

[Event "MPL 35th National U-20 Girls Chess-ch 20"]
[Site "Haryana"]
[Date "2022.03.13"]
[Round "9.5"]
[White "Velpula Sarayu"]
[Black "Lakshmi C"]
[Result "1/2-1/2"]
[ECO "C45"]
[WhiteElo "1875"]
[BlackElo "1968"]
[Annotator "NA"]
[PlyCount "175"]
[EventDate "2022.03.09"]
[EventCountry "IND"]
[SourceTitle "playchess.com"]
[Source "ChessBase"]
[SourceQuality "1"]
[TimeControl "5400+30"]

1. e4 {[%emt 0:00:07]} e5 {[%emt 0:00:34]} 2. Nf3 {[%emt 0:00:08]} Nc6 {[%emt 0:00:07]} 3. d4 {[%emt 0:00:10]} exd4 4. Nxd4 {[%emt 0:00:11]} Bc5 {[%emt 0:00:41]} 5. Nb3 Bb6 {[%emt 0:00:15]} 6. Nc3 {[%emt 0:00:24]} Nf6 {[%emt 0:01:16]} 7. Qe2 {[%emt 0:00:13]} d6 {[%emt 0:12:07]} 8. Be3 {[%emt 0:00:12]} Be6 {[%emt 0:32:00]} 9. O-O-O Qd7 10. f3 {[%emt 0:13:49]} O-O-O {[%emt 0:17:28]} 11. Bxb6 {[%emt 0:04:51]} axb6 {[%emt 0:04:17]} 12. Qf2 {[%emt 0:01:24]} Qe7 {[%emt 0:03:48]} 13. Nd4 {[%emt 0:01:45]} d5 {[%emt 0:08:52]} 14. Nxc6 {[%emt 0:17:23]} bxc6 {[%emt 0:00:06]} 15. e5 {[%emt 0:01:21]} Nd7 {[%emt 0:02:14]} 16. f4 {[%emt 0:00:24]} Qc5 {[%emt 0:06:27]} 17. Qd2 {[%emt 0:01:00]} (17. Qxc5 $1 $11 Nxc5 18. b4) 17... Kb7 {[%emt 0:02:44]} (17... f6 $17) 18. a3 {[%emt 0:00:52]} Qa5 {[%emt 0:01:18]} (18... f6 $15 19. exf6 Nxf6) 19. Be2 {[%emt 0:04:15]} f6 (19... Nf6 $2 {[%emt 0:00:53][%mdl 8192]}) 20. exf6 {[%emt 0:00:30]} Nxf6 {[%emt 0:01:23]} 21. Bf3 {[%emt 0:00:27]} Qc5 {[%emt 0:02:51]} 22. Rhe1 {[%emt 0:09:17]} Rhe8 {[%emt 0:01:17]} 23. Re5 {[%emt 0:02:41]} Bg4 {[%emt 0:00:52]} 24. Qe2 {[%emt 0:01:59]} Bxf3 {[%emt 0:00:52]} 25. gxf3 {[%emt 0:00:25]} b5 {[%emt 0:00:38]} 26. Qd2 {[%emt 0:02:57]} Nd7 {[%emt 0:00:44]} 27. Rg5 {[%emt 0:00:41]} Qf8 {[%emt 0:00:26]} 28. Kb1 {[%emt 0:02:47]} g6 {[%emt 0:00:31]} 29. Ne2 {[%emt 0:02:46]} Nb6 {[%emt 0:00:13]} 30. Re1 {[%emt 0:02:47]} Nc4 {[%emt 0:00:20]} 31. Qc1 {[%emt 0:00:05]} Re3 {[%emt 0:00:26]} 32. Nd4 {[%emt 0:01:54]} Rde8 {[%emt 0:01:02]} 33. Rxe3 {[%emt 0:01:02]} Rxe3 {[%emt 0:00:13]} 34. Rg4 {[%emt 0:01:57]} h5 {[%emt 0:00:36]} 35. Rxg6 {[%emt 0:00:27]} Qxf4 {[%emt 0:00:28]} 36. Nxc6 {[%emt 0:00:55]} Qxf3 {[%emt 0:00:44]} 37. Na5+ {[%emt 0:01:05]} Nxa5 {[%emt 0:00:35]} 38. Rg3 {[%emt 0:00:14]} Qxg3 {[%emt 0:00:26]} 39. hxg3 {[%emt 0:00:03]} Re5 {[%emt 0:00:31]} 40. b3 {[%emt 0:00:40]} Nc6 {[%emt 0:00:33]} 41. Qf1 {[%emt 0:00:35]} d4 {[%emt 0:00:30]} 42. Kb2 {[%emt 0:01:03]} Kb6 {[%emt 0:00:20]} 43. Qf4 {[%emt 0:00:29]} Kb7 {[%emt 0:00:26]} 44. Qf3 {[%emt 0:01:18]} Kb6 {[%emt 0:00:30]} 45. b4 Rg5 {[%emt 0:00:44]} 46. Ka2 {[%emt 0:03:44]} Re5 {[%emt 0:00:24]} 47. Kb2 $2 {[%emt 0:02:58]} Rg5 {[%emt 0:00:34]} 48. Qf7 {[%emt 0:01:35]} Re5 {[%emt 0:00:25]} 49. Qg6 {[%emt 0:01:27]} Kb7 {[%emt 0:00:20]} 50. Ka2 {[%emt 0:02:01]} Kb6 {[%emt 0:00:31]} 51. Qf7 {[%emt 0:00:00]} Kb7 {[%emt 0:00:30]} 52. Qf3 {[%emt 0:00:18]} Kb6 {[%emt 0:00:30]} 53. Kb1 $16 {[%emt 0:00:30]} Re1+ {[%emt 0:00:17]} 54. Kb2 {[%emt 0:00:29]} Re5 {[%emt 0:00:15]} 55. Ka2 {[%emt 0:00:04]} Kb7 {[%emt 0:00:47]} 56. g4 {[%emt 0:04:00]} hxg4 {[%emt 0:00:08]} 57. Qxg4 {[%emt 0:00:04]} Kb6 {[%emt 0:00:30]} 58. Kb2 {[%emt 0:00:51]} Kb7 {[%emt 0:00:45]} 59. Qg1 {[%emt 0:02:26]} Rf5 {[%emt 0:00:49]} 60. Qg2 {[%emt 0:01:42]} Kb6 {[%emt 0:00:40]} 61. Qg8 {[%emt 0:01:38]} Re5 {[%emt 0:00:26]} 62. Qc8 {[%emt 0:00:20]} Rg5 {[%emt 0:00:28]} 63. Qf8 {[%emt 0:01:19]} Re5 {[%emt 0:00:14]} 64. Kc1 {[%emt 0:00:08]} Re1+ {[%emt 0:00:38]} 65. Kd2 {[%emt 0:00:05]} Re5 {[%emt 0:00:12]} 66. c3 {[%emt 0:01:32]} dxc3+ {[%emt 0:00:08]} 67. Kxc3 Re3+ {[%emt 0:00:20]} 68. Kb2 {[%emt 0:00:08]} (68. Kd2 {[%emt 0:00:08]}) 68... Re5 {[%emt 0:00:11]} 69. Qg8 {[%emt 0:00:11]} Kb7 70. Qg2 {[%emt 0:00:21]} Kb6 {[%emt 0:00:59]} 71. Kc3 {[%emt 0:00:18]} Re3+ {[%emt 0:00:15]} 72. Kd2 {[%emt 0:01:29]} Re5 {[%emt 0:01:44]} 73. Kc3 {[%emt 0:00:18]} Re3+ $16 {[%emt 0:00:15]} 74. Kd2 {[%emt 0:01:11]} Re5 {[%emt 0:00:59]} 75. Qf3 $16 {[%emt 0:00:09]} Kb7 {[%emt 0:00:24]} (75... Re6 $14) 76. Kc3 Kb6 77. Kb2 Kb7 78. Kb3 Kb6 79. Qf2+ Kb7 80. Qg1 Rf5 81. Qe3 Re5 82. Qd3 Rg5 83. a4 Na7 84. Qe4+ Nc6 85. Qd3 Na7 86. Qf3+ Nc6 87. a5 Re5 88. Qd3 1/2-1/2